[Event "FIDE Open World Rapid 2024"]
[Site "New York"]
[Date "2024.12.27"]
[Round "7.44"]
[White "Batsuren, Dambasuren"]
[Black "Ivanchuk, Vasyl"]
[Result "0-1"]
[ECO "D07"]
[WhiteElo "2531"]
[BlackElo "2630"]
[Annotator "ChessBase"]
[PlyCount "116"]
[EventDate "2024.12.14"]
[EventType "swiss"]
[EventCountry "USA"]
[SourceTitle "playchess.com"]
[Source "ChessBase"]
[SourceQuality "1"]
[TimeControl "900+10"]

1. d4 {[%emt 0:00:01]} d5 {[%emt 0:00:03]} 2. c4 {[%emt 0:00:03]} Nc6 {[%emt 0:00:02]} 3. Nf3 {[%emt 0:03:01]} Bg4 {[%emt 0:00:02]} 4. cxd5 {[%emt 0:01:03]} Bxf3 {[%emt 0:00:03]} 5. gxf3 {[%emt 0:00:03]} Qxd5 {[%emt 0:00:01]} 6. e3 {[%emt 0:00:12]} e6 {[%emt 0:00:02]} 7. Nc3 {[%emt 0:00:20]} Qh5 {[%emt 0:00:01]} 8. f4 {[%emt 0:00:39]} Qxd1+ {[%emt 0:00:03]} 9. Kxd1 {[%emt 0:00:02]} Nf6 {[%emt 0:00:40]} 10. Bg2 {[%emt 0:00:11]} O-O-O {[%emt 0:00:05]} 11. Ke2 {[%emt 0:00:33]} Ne7 {[%emt 0:00:09]} 12. Bd2 {[%emt 0:00:35]} Ned5 {[%emt 0:00:13]} 13. Rac1 {[%emt 0:02:52]} Kb8 {[%emt 0:00:41]} 14. Rhd1 {[%emt 0:01:04]} Be7 {[%emt 0:00:25]} 15. Bf3 {[%emt 0:01:58]} g6 {[%emt 0:00:57]} 16. Na4 {[%emt 0:01:23]} h6 {[%emt 0:00:41]} 17. e4 {[%emt 0:01:49]} Nb4 {[%emt 0:01:17]} 18. a3 {[%emt 0:00:44]} Na6 {[%emt 0:00:15]} 19. Be3 {[%emt 0:00:29]} c6 {[%emt 0:00:02]} 20. b4 {[%emt 0:00:16]} Nc7 {[%emt 0:00:43]} 21. Nc5 {[%emt 0:00:06]} Nd7 {[%emt 0:00:01]} 22. Nd3 {[%emt 0:00:15]} f5 {[%emt 0:00:24]} 23. Rg1 {[%emt 0:00:30]} Rdg8 {[%emt 0:00:06]} 24. Rg2 {[%emt 0:00:44]} Nf6 {[%emt 0:00:50]} 25. exf5 {[%emt 0:00:14]} gxf5 {[%emt 0:00:08]} 26. Rcg1 {[%emt 0:00:08]} Rxg2 {[%emt 0:00:57]} 27. Rxg2 {[%emt 0:00:01]} Rg8 {[%emt 0:00:01]} 28. Rxg8+ {[%emt 0:00:22]} Nxg8 {[%emt 0:00:01]} 29. Bh5 {[%emt 0:00:10]} Nf6 {[%emt 0:00:44]} 30. Bf7 {[%emt 0:00:01]} Kc8 {[%emt 0:00:01]} 31. Nc5 {[%emt 0:00:18]} Bxc5 {[%emt 0:00:11]} 32. dxc5 {[%emt 0:00:02]} Kd7 {[%emt 0:00:06]} 33. Bd4 {[%emt 0:00:12]} Ke7 {[%emt 0:00:45]} 34. Bg6 {[%emt 0:00:01]} Nb5 {[%emt 0:00:29]} 35. Bb2 {[%emt 0:00:03]} Nd5 {[%emt 0:00:01]} 36. Bc1 {[%emt 0:00:24]} Nd4+ {[%emt 0:00:23]} 37. Kd3 {[%emt 0:00:13]} Nf3 {[%emt 0:00:23]} 38. Ke2 {[%emt 0:00:14]} Ng1+ {[%emt 0:01:04]} 39. Kf1 {[%emt 0:00:02]} Nh3 {[%emt 0:00:01]} 40. Bh5 {[%emt 0:00:01]} Ndxf4 {[%emt 0:01:14]} 41. Bf3 {[%emt 0:00:27]} e5 {[%emt 0:00:08]} 42. b5 {[%emt 0:00:12]} Kd7 {[%emt 0:00:34]} 43. bxc6+ {[%emt 0:00:04]} bxc6 {[%emt 0:00:01]} 44. Be3 {[%emt 0:00:17]} Ng5 {[%emt 0:00:06]} 45. Bd1 {[%emt 0:00:10]} Ne4 {[%emt 0:00:16]} 46. f3 {[%emt 0:00:09]} Nc3 {[%emt 0:00:37]} 47. Bc2 {[%emt 0:00:06]} Ke6 {[%emt 0:00:01]} 48. Bd2 {[%emt 0:00:09]} Nb5 {[%emt 0:00:24]} 49. Bb3+ {[%emt 0:00:09]} Kf6 {[%emt 0:00:38]} 50. Ba4 {[%emt 0:00:07]} a6 {[%emt 0:02:07]} 51. Be3 {[%emt 0:00:06]} h5 {[%emt 0:00:08]} 52. Kf2 {[%emt 0:00:13]} Ne6 {[%emt 0:00:26]} 53. Ke1 {[%emt 0:00:21]} Nxa3 {[%emt 0:00:22]} 54. Bb3 {[%emt 0:00:09]} Nb5 {[%emt 0:00:11]} 55. Bc4 {[%emt 0:00:05]} a5 {[%emt 0:00:06]} 56. Bxb5 {[%emt 0:00:16]} cxb5 {[%emt 0:00:01]} 57. c6 {[%emt 0:00:04]} Ke7 {[%emt 0:00:15]} 58. Bb6 {[%emt 0:00:16]} a4 {[%emt 0:00:04]} 0-1

[Event "FIDE Open World Rapid 2024"]
[Site "New York"]
[Date "2024.12.27"]
[Round "7.44"]
[White "Grahn, Vidar"]
[Black "Wanyama, Harold"]
[Result "0-1"]
[ECO "E04"]
[WhiteElo "2263"]
[BlackElo "2154"]
[Annotator "ChessBase"]
[PlyCount "106"]
[EventDate "2024.12.14"]
[EventType "swiss"]
[EventCountry "USA"]
[SourceTitle "playchess.com"]
[Source "ChessBase"]
[SourceQuality "1"]
[TimeControl "900+10"]

1. d4 {[%emt 0:00:01]} d5 {[%emt 0:00:03]} 2. c4 {[%emt 0:00:01]} e6 {[%emt 0:00:04]} 3. Nf3 {[%emt 0:00:02]} Nf6 {[%emt 0:00:03]} 4. g3 {[%emt 0:00:02]} dxc4 {[%emt 0:00:07]} 5. Bg2 {[%emt 0:00:01]} Nc6 {[%emt 0:00:03]} 6. Qa4 {[%emt 0:00:03]} Bb4+ {[%emt 0:00:10]} 7. Bd2 {[%emt 0:00:01]} Nd5 {[%emt 0:00:02]} 8. Qb5 {[%emt 0:00:36]} Bxd2+ {[%emt 0:00:26]} 9. Nbxd2 {[%emt 0:00:09]} c3 {[%emt 0:01:36]} 10. bxc3 {[%emt 0:00:05]} Nxc3 {[%emt 0:00:02]} 11. Qb3 {[%emt 0:00:02]} Nd5 {[%emt 0:00:09]} 12. O-O {[%emt 0:00:04]} O-O {[%emt 0:00:03]} 13. Rfc1 {[%emt 0:00:14]} Nb6 {[%emt 0:00:04]} 14. e3 {[%emt 0:00:41]} e5 {[%emt 0:02:07]} 15. dxe5 {[%emt 0:00:07]} Qe7 {[%emt 0:00:05]} 16. Qb2 {[%emt 0:02:03]} Nb4 {[%emt 0:00:25]} 17. Qc3 {[%emt 0:01:09]} c6 {[%emt 0:00:48]} 18. a3 {[%emt 0:00:50]} N4d5 {[%emt 0:00:15]} 19. Qc2 {[%emt 0:00:03]} Bg4 {[%emt 0:00:10]} 20. h3 {[%emt 0:01:08]} Bh5 {[%emt 0:00:03]} 21. e4 {[%emt 0:00:11]} Nc7 {[%emt 0:00:06]} 22. a4 {[%emt 0:00:22]} Nd7 {[%emt 0:00:25]} 23. Qb2 {[%emt 0:00:01]} Nc5 {[%emt 0:00:14]} 24. Qa3 {[%emt 0:00:22]} N7a6 {[%emt 0:00:18]} 25. Nc4 {[%emt 0:00:57]} Rad8 {[%emt 0:00:07]} 26. Nh4 {[%emt 0:01:03]} Be2 {[%emt 0:00:16]} 27. Nf5 {[%emt 0:00:16]} Qe6 {[%emt 0:00:05]} 28. Nfe3 {[%emt 0:01:40]} f6 {[%emt 0:00:32]} 29. exf6 {[%emt 0:00:21]} Qxf6 {[%emt 0:00:04]} 30. f4 {[%emt 0:00:48]} Bxc4 {[%emt 0:00:50]} 31. Nxc4 {[%emt 0:00:31]} Rd3 {[%emt 0:00:19]} 32. Qa2 {[%emt 0:00:26]} Qd4+ {[%emt 0:02:12]} 33. Kh2 {[%emt 0:00:17]} Nb4 {[%emt 0:00:05]} 34. Qe2 {[%emt 0:01:48]} Nb3 {[%emt 0:00:08]} 35. Ne5 {[%emt 0:00:27]} Nxc1 {[%emt 0:00:37]} 36. Rxc1 {[%emt 0:00:05]} Rd2 {[%emt 0:00:37]} 37. Qg4 {[%emt 0:00:01]} Qd6 {[%emt 0:02:43]} 38. Nc4 {[%emt 0:00:01]} Rxg2+ {[%emt 0:01:32]} 39. Kxg2 {[%emt 0:00:02]} Qe7 {[%emt 0:00:02]} 40. Ne5 {[%emt 0:00:29]} Rd8 {[%emt 0:00:07]} 41. Rd1 {[%emt 0:00:02]} Rxd1 {[%emt 0:00:29]} 42. Qxd1 {[%emt 0:00:00]} h6 {[%emt 0:00:09]} 43. Kf3 {[%emt 0:01:05]} a5 {[%emt 0:00:10]} 44. Ng6 {[%emt 0:00:35]} Qf6 {[%emt 0:00:11]} 45. Qb3+ {[%emt 0:00:27]} Kh7 {[%emt 0:00:03]} 46. f5 {[%emt 0:00:08]} Qd6 {[%emt 0:00:55]} 47. e5 {[%emt 0:00:23]} Qd4 {[%emt 0:00:36]} 48. Nf8+ {[%emt 0:00:40]} Kh8 {[%emt 0:00:03]} 49. Ng6+ {[%emt 0:00:03]} Kh7 {[%emt 0:00:02]} 50. Ne7 {[%emt 0:00:47]} Nd5 {[%emt 0:00:40]} 51. Nxd5 {[%emt 0:00:15]} cxd5 {[%emt 0:00:01]} 52. Qe3 {[%emt 0:00:17]} Qxa4 {[%emt 0:00:02]} 53. e6 {[%emt 0:00:05]} Qc6 {[%emt 0:00:27]} 0-1

[Event "FIDE Open World Rapid 2024"]
[Site "New York"]
[Date "2024.12.27"]
[Round "7.45"]
[White "Tang, Andrew"]
[Black "Anton Guijarro, David"]
[Result "0-1"]
[ECO "D02"]
[WhiteElo "2527"]
[BlackElo "2673"]
[Annotator "ChessBase"]
[PlyCount "122"]
[EventDate "2024.12.14"]
[EventType "swiss"]
[EventCountry "USA"]
[SourceTitle "playchess.com"]
[Source "ChessBase"]
[SourceQuality "1"]
[TimeControl "900+10"]

1. d4 {[%emt 0:00:01]} d5 {[%emt 0:00:02]} 2. Nf3 {[%emt 0:00:03]} e6 {[%emt 0:00:06]} 3. Bf4 {[%emt 0:00:04]} Bd6 {[%emt 0:00:05]} 4. e3 {[%emt 0:00:03]} Nf6 {[%emt 0:00:09]} 5. Nbd2 {[%emt 0:00:06]} O-O {[%emt 0:00:20]} 6. c3 {[%emt 0:00:03]} Nc6 {[%emt 0:00:48]} 7. Bd3 {[%emt 0:01:08]} Qe7 {[%emt 0:00:26]} 8. Ne5 {[%emt 0:01:13]} Nd7 {[%emt 0:00:45]} 9. Ndf3 {[%emt 0:01:09]} f6 {[%emt 0:00:47]} 10. Nxd7 {[%emt 0:00:48]} Bxd7 {[%emt 0:00:05]} 11. Bxd6 {[%emt 0:00:58]} cxd6 {[%emt 0:00:09]} 12. O-O {[%emt 0:03:06]} e5 {[%emt 0:00:21]} 13. e4 {[%emt 0:01:27]} dxe4 {[%emt 0:00:13]} 14. Bxe4 {[%emt 0:00:02]} f5 {[%emt 0:01:31]} 15. Bd5+ {[%emt 0:03:47]} Kh8 {[%emt 0:00:06]} 16. dxe5 {[%emt 0:00:06]} dxe5 {[%emt 0:00:03]} 17. Re1 {[%emt 0:00:10]} e4 {[%emt 0:01:08]} 18. Bxc6 {[%emt 0:01:31]} bxc6 {[%emt 0:01:16]} 19. Ne5 {[%emt 0:00:08]} Qxe5 {[%emt 0:04:07]} 20. Qxd7 {[%emt 0:00:02]} Qb5 {[%emt 0:00:11]} 21. b3 {[%emt 0:00:40]} a5 {[%emt 0:01:53]} 22. Rad1 {[%emt 0:01:27]} a4 {[%emt 0:00:17]} 23. c4 {[%emt 0:00:11]} Qb6 {[%emt 0:00:15]} 24. Rf1 {[%emt 0:00:41]} axb3 {[%emt 0:00:19]} 25. axb3 {[%emt 0:00:01]} Qxb3 {[%emt 0:00:33]} 26. Qxc6 {[%emt 0:00:04]} Rac8 {[%emt 0:00:02]} 27. Qb5 {[%emt 0:00:18]} Qxc4 {[%emt 0:00:09]} 28. Qxc4 {[%emt 0:00:02]} Rxc4 {[%emt 0:00:01]} 29. Rd7 {[%emt 0:00:02]} h6 {[%emt 0:00:24]} 30. g3 {[%emt 0:00:29]} f4 {[%emt 0:00:19]} 31. Re7 {[%emt 0:00:02]} Rf5 {[%emt 0:00:51]} 32. Re1 {[%emt 0:00:14]} e3 {[%emt 0:00:04]} 33. fxe3 {[%emt 0:00:12]} fxg3 {[%emt 0:00:02]} 34. hxg3 {[%emt 0:00:06]} Rg4 {[%emt 0:00:06]} 35. Kh2 {[%emt 0:00:13]} Rh5+ {[%emt 0:00:06]} 36. Kg2 {[%emt 0:00:00]} Rhg5 {[%emt 0:00:00]} 37. e4 {[%emt 0:00:08]} Rxg3+ {[%emt 0:00:04]} 38. Kf2 {[%emt 0:00:02]} Rg2+ {[%emt 0:01:02]} 39. Kf3 {[%emt 0:00:15]} Rg1 {[%emt 0:00:04]} 40. Re2 {[%emt 0:00:11]} Rf1+ {[%emt 0:00:49]} 41. Ke3 {[%emt 0:00:01]} Rg3+ {[%emt 0:00:11]} 42. Kd4 {[%emt 0:00:03]} Rd1+ {[%emt 0:00:05]} 43. Ke5 {[%emt 0:00:04]} Kh7 {[%emt 0:00:08]} 44. Ke6 {[%emt 0:00:26]} Rg6+ {[%emt 0:00:03]} 45. Kf7 {[%emt 0:00:06]} Rf6+ {[%emt 0:00:17]} 46. Ke8 {[%emt 0:00:01]} Kg8 {[%emt 0:00:27]} 47. Re5 {[%emt 0:00:19]} Ra1 {[%emt 0:00:12]} 48. Rf5 {[%emt 0:00:42]} Ra8+ {[%emt 0:00:13]} 49. Ke7 {[%emt 0:00:08]} Ra7+ {[%emt 0:00:02]} 50. Ke8 {[%emt 0:00:12]} Rxf5 {[%emt 0:00:37]} 51. exf5 {[%emt 0:00:01]} Rf7 {[%emt 0:00:03]} 52. Rf2 {[%emt 0:00:22]} Rf6 {[%emt 0:00:13]} 53. Ke7 {[%emt 0:00:03]} Kh7 {[%emt 0:00:02]} 54. Rf1 {[%emt 0:00:08]} h5 {[%emt 0:00:07]} 55. Rf2 {[%emt 0:00:14]} Kh6 {[%emt 0:00:03]} 56. Rf1 {[%emt 0:00:08]} h4 {[%emt 0:00:15]} 57. Rf2 {[%emt 0:00:15]} Kh5 {[%emt 0:00:14]} 58. Rf1 {[%emt 0:00:05]} h3 {[%emt 0:00:10]} 59. Rg1 {[%emt 0:00:18]} Rxf5 {[%emt 0:00:15]} 60. Rxg7 {[%emt 0:00:05]} Kh4 {[%emt 0:00:17]} 61. Ke6 {[%emt 0:00:05]} Rh5 {[%emt 0:00:48]} 0-1

[Event "FIDE Open World Rapid 2024"]
[Site "New York"]
[Date "2024.12.27"]
[Round "7.46"]
[White "Khanin, Semen"]
[Black "Andriasian, Zaven"]
[Result "1/2-1/2"]
[ECO "D10"]
[WhiteElo "2568"]
[BlackElo "2554"]
[Annotator "ChessBase"]
[PlyCount "55"]
[EventDate "2024.12.14"]
[EventType "swiss"]
[EventCountry "USA"]
[SourceTitle "playchess.com"]
[Source "ChessBase"]
[SourceQuality "1"]
[TimeControl "900+10"]

1. d4 {[%emt 0:00:02]} d5 {[%emt 0:00:02]} 2. c4 {[%emt 0:00:02]} c6 {[%emt 0:00:01]} 3. cxd5 {[%emt 0:00:02]} cxd5 {[%emt 0:00:01]} 4. Bf4 {[%emt 0:00:02]} Nc6 {[%emt 0:00:05]} 5. e3 {[%emt 0:00:02]} Nf6 {[%emt 0:00:05]} 6. Bd3 {[%emt 0:00:02]} Bg4 {[%emt 0:00:59]} 7. f3 {[%emt 0:00:02]} Bd7 {[%emt 0:00:04]} 8. Nc3 {[%emt 0:00:02]} e6 {[%emt 0:01:08]} 9. g4 {[%emt 0:00:02]} Bb4 {[%emt 0:00:08]} 10. Nge2 {[%emt 0:00:04]} Qe7 {[%emt 0:00:13]} 11. Kf2 {[%emt 0:01:12]} O-O {[%emt 0:01:24]} 12. h4 {[%emt 0:00:18]} Bd6 {[%emt 0:01:11]} 13. Bg5 {[%emt 0:01:36]} Rfe8 {[%emt 0:00:33]} 14. Nf4 {[%emt 0:00:45]} h6 {[%emt 0:03:01]} 15. Bxf6 {[%emt 0:00:13]} Qxf6 {[%emt 0:00:02]} 16. g5 {[%emt 0:00:08]} Qe7 {[%emt 0:00:04]} 17. gxh6 {[%emt 0:00:22]} Bxf4 {[%emt 0:00:02]} 18. exf4 {[%emt 0:00:04]} gxh6 {[%emt 0:00:06]} 19. Ne2 {[%emt 0:01:56]} Kh8 {[%emt 0:00:11]} 20. a3 {[%emt 0:00:53]} Rg8 {[%emt 0:00:39]} 21. Bc2 {[%emt 0:00:03]} f5 {[%emt 0:01:19]} 22. Qd2 {[%emt 0:00:05]} Rg7 {[%emt 0:00:14]} 23. Rag1 {[%emt 0:03:52]} Rxg1 {[%emt 0:01:06]} 24. Nxg1 {[%emt 0:00:03]} Rg8 {[%emt 0:00:08]} 25. Ne2 {[%emt 0:00:02]} Qg7 {[%emt 0:00:29]} 26. Rg1 {[%emt 0:03:08]} Qf6 {[%emt 0:00:02]} 27. Rh1 {[%emt 0:00:04]} Qg7 {[%emt 0:00:33]} 28. Rg1 {[%emt 0:00:14]} 1/2-1/2